bitfinex/quotes_ETHUSD_20220215
["timestamp","ask_amount","ask_price","bid_price","bid_amount"]
[1644946439117,0.465,3093.7,3093.4,0.00277839]
[1644946439319,1.465,3093.7,3093.4,0.00277839]
[1644946439517,1.61665,3093.5,3093.4,0.00277831]
[1644946439765,1.465,3093.7,3093.4,0.00277831]
[1644946439766,0.80827,3093.7,3093.4,0.00277831]
[1644946439966,1.1274,3093.8,3093.4,0.00277831]
[1644946440371,1.1274,3093.8,3092.7,0.00377282]
[1644946440567,1.1274,3093.8,3092.8,0.69820971]
[1644946440767,9.2805,3094.1,3093.8,0.02790133]
[1644946440768,1.07950179,3093.9,3093.8,0.02790133]
[1644946442570,0.80817,3094.0,3093.8,0.02790133]
[1644946442975,10.82337,3094.1,3093.8,0.02790133]
[1644946443616,16.68974994,3094.1,3093.8,0.02790133]
[1644946443817,1.04017214,3094.0,3093.8,0.02790133]
[1644946444018,3.61914519,3093.9,3093.8,0.02790133]
[1644946444517,3.47805466,3093.9,3093.8,0.02790133]
[1644946444717,3.47805466,3093.9,3093.4,0.00262173]
[1644946444718,6.75,3093.8,3093.4,0.00262173]
[1644946444915,6.75,3093.8,3092.9,0.67631645]
[1644946444916,5.28153457,3093.7,3092.9,0.67631645]
[1644946445115,5.28151457,3093.7,3092.9,0.67631645]
[1644946445316,1.0,3093.6,3093.0,0.00377282]
[1644946445518,1.27337,3093.5,3093.0,0.00377282]
[1644946445717,1.27337,3093.5,3092.0,2.91189782]
[1644946445718,1.27337,3093.5,3092.1,0.00377282]
[1644946445918,1.108733,3092.8,3092.2,0.67635619]
[1644946446115,1.27337,3093.5,3092.2,0.67635619]
[1644946446116,0.80844,3093.0,3092.2,0.67635619]
[1644946446321,0.80844,3092.9,3092.3,0.00377282]
[1644946446516,0.80844,3092.9,3092.4,0.67635619]
[1644946446716,0.80849,3092.8,3092.4,0.67635619]
[1644946446919,0.80849,3092.8,3092.5,0.00377282]
[1644946447117,3.94609,3092.8,3091.8,0.00377282]
[1644946447385,3.94609,3092.8,3091.9,0.67565387]
[1644946447386,0.80849,3092.7,3091.9,0.67565387]
[1644946447570,0.80849,3092.7,3092.0,0.00377282]
[1644946447767,0.80849,3092.7,3092.1,0.67565387]
[1644946447768,1.03235038,3092.6,3092.1,0.67565387]
[1644946447971,0.80849,3092.7,3092.1,0.67565387]
[1644946448171,1.61699,3092.7,3092.2,0.67942669]
[1644946448368,1.61699,3092.7,3092.3,0.67565387]
[1644946448569,1.61699,3092.7,3092.4,0.67942669]
[1644946448770,1.61699,3092.7,3092.0,0.00377282]
[1644946448970,3.1376,3092.8,3092.1,0.67513859]
[1644946449272,10.23186962,3092.7,3091.8,0.39356617]
[1644946449472,12.57256962,3092.7,3091.9,0.0038129]
[1644946449769,12.57256962,3092.7,3091.7,0.0038129]
[1644946449970,0.80879,3092.5,3091.5,0.01520807]
[1644946450173,0.80879,3092.5,3091.5,0.01139517]
[1644946450174,0.465,3092.4,3091.5,0.01139517]
[1644946450375,0.465,3092.4,3091.1,0.0038129]
[1644946450376,0.80876,3092.2,3091.1,0.0038129]
[1644946450774,0.80876,3092.2,3091.1,0.61969052]
[1644946451017,0.80876,3092.2,3091.2,0.0038129]
[1644946451218,0.80876,3092.2,3091.3,0.13312729]
[1644946451417,0.80876,3092.2,3091.4,0.0038129]
[1644946451819,1.61741,3092.2,3091.4,0.0038129]
[1644946452019,0.80869,3092.0,3091.4,0.0038129]
[1644946452218,3.45988297,3092.1,3091.4,0.0038129]
[1644946452419,1.61747,3092.0,3091.4,0.0038129]
[1644946452619,3.41230512,3092.2,3091.4,0.0038129]
[1644946452820,3.0412309,3092.3,3091.0,0.0038129]
[1644946453021,3.0412309,3092.3,3091.1,0.0038129]
[1644946453022,3.5835398,3092.2,3091.1,0.0038129]
[1644946453220,3.54019028,3092.2,3090.8,0.14493286]
[1644946453427,0.80868,3091.9,3090.8,0.0038129]
[1644946453619,1.6174,3092.0,3090.8,0.0038129]
[1644946453620,3.42166666,3091.8,3090.8,0.0038129]
[1644946453820,0.90597902,3091.5,3090.8,0.0038129]
[1644946454220,0.90597902,3091.5,3091.3,0.00284826]
[1644946454620,1.71477902,3091.5,3091.3,0.00284826]
[1644946454874,0.90597902,3091.5,3091.3,0.00284826]
[1644946455076,0.90597902,3091.5,3090.8,0.0038129]
[1644946455372,0.90597902,3091.5,3091.2,0.00284831]
[1644946455974,0.80876,3091.7,3091.2,0.00284831]
[1644946456174,0.80876,3091.7,3090.8,0.0038129]
[1644946456375,0.80876,3091.7,3091.2,0.00158449]
[1644946456574,1.61756,3091.7,3091.2,0.00158449]
[1644946456772,0.80876,3091.7,3091.2,0.00158449]
[1644946457373,1.88053534,3091.7,3090.8,0.0038129]
[1644946457576,1.07177534,3091.7,3091.3,0.00158444]
[1644946458376,3.42912858,3091.6,3091.3,0.00158444]
[1644946458621,1.07177534,3091.7,3090.8,0.0038129]
[1644946458818,1.07177534,3091.7,3091.3,0.00285145]
[1644946459016,1.88052534,3091.7,3091.3,0.00285145]
[1644946459316,2.68932534,3091.7,3091.3,0.00285145]
[1644946459716,2.68932534,3091.7,3090.8,0.0038129]
[1644946459916,1.88057534,3091.7,3091.3,0.00285145]
[1644946460122,0.80879,3091.6,3091.3,0.00285145]
[1644946460720,1.22079366,3091.7,3091.3,0.00285145]
[1644946460918,1.22079366,3091.7,3090.5,1.30875]
[1644946461223,0.80881,3091.6,3091.3,0.00285148]
[1644946461419,0.80879,3091.6,3091.3,0.00285148]
[1644946461620,1.07177534,3091.7,3091.3,0.00285148]
[1644946462266,1.07177534,3091.7,3090.7,0.15565179]
[1644946462566,0.80875,3091.7,3091.3,0.00276591]
[1644946462768,1.1251,3091.8,3091.3,0.00276591]
[1644946463167,3.1279,3091.9,3091.3,0.00276591]
[1644946463367,3.1279,3091.9,3091.1,0.33781519]
[1644946463569,3.1279,3091.9,3091.2,0.16048153]
[1644946463870,3.1279,3091.9,3091.4,0.00276932]
[1644946464467,3.1279,3091.9,3091.2,0.16048153]
[1644946464868,3.1279,3091.9,3091.5,0.00276927]
[1644946465370,0.80865,3092.1,3091.5,0.00276927]
[1644946465669,5.15989456,3092.5,3091.2,0.16048153]
[1644946465670,1.1773,3092.6,3091.3,0.12609746]
[1644946465868,2.9583,3092.8,3091.3,0.3110784]
[1644946466125,2.9583,3092.8,3091.4,5.17810905]
[1644946466329,1.14044657,3092.6,3091.5,2.03103119]
[1644946466529,1.14044657,3092.6,3091.8,0.5158738]
[1644946466726,1.14044657,3092.6,3091.8,0.16715114]
[1644946466924,1.14044657,3092.6,3091.9,0.3]
[1644946467323,1.14044657,3092.6,3091.8,0.3]
[1644946467525,1.14044657,3092.6,3091.9,0.19076024]
[1644946467725,1.14044657,3092.6,3091.9,0.49076024]
[1644946467925,1.14044657,3092.6,3092.0,1.57044321]
[1644946468725,1.14044657,3092.6,3092.0,1.374245]
[1644946468925,1.14044657,3092.6,3092.0,0.565865]
[1644946469434,3.1511,3092.8,3092.0,0.69811512]
[1644946469626,3.1511,3092.8,3092.2,0.5658666]
[1644946469869,4.74360498,3093.2,3092.1,0.3]
[1644946469870,0.80845,3093.0,3092.1,0.3]
[1644946470073,0.80845,3092.9,3092.1,0.3]
[1644946470269,0.80845,3092.9,3092.0,0.19364629]
[1644946470472,0.93755768,3092.5,3092.1,0.63708364]
[1644946470669,0.93755768,3092.5,3092.1,0.93708364]
[1644946470871,4.92344,3093.1,3092.1,0.3]
[1644946471071,0.80843,3093.0,3092.2,0.63704859]
[1644946471674,0.80843,3093.0,3092.2,0.80343047]
[1644946471872,0.84788347,3092.7,3092.3,0.63704859]
[1644946472272,0.84788347,3092.7,3092.3,0.93704859]
[1644946472472,0.84788347,3092.7,3092.4,0.63704859]
[1644946473515,0.84788347,3092.7,3092.2,0.6]
[1644946473713,0.84788347,3092.7,3092.3,0.63758144]
[1644946474013,0.80844,3093.0,3092.3,1.20346064]
[1644946474014,0.80842,3093.0,3092.3,1.20346064]
[1644946474217,3.72235576,3093.5,3092.4,0.93758144]
[1644946474218,1.61675,3093.5,3092.4,0.93758144]
[1644946474418,0.00261569,3093.3,3092.5,0.63758144]
[1644946474625,0.00261569,3093.3,3092.7,5.80816]
[1644946474816,0.00261569,3093.3,3092.9,0.17975247]
[1644946475014,0.00261569,3093.3,3093.0,0.98070724]
[1644946475214,0.00261569,3093.3,3092.9,0.00379298]
[1644946475415,0.84911616,3093.4,3092.6,0.00379298]
[1644946475615,0.84911616,3093.4,3092.7,0.64238044]
[1644946475815,0.00261591,3093.3,3092.8,0.63858746]
[1644946476015,0.00261591,3093.3,3092.8,1.20815434]
[1644946476215,0.00261591,3093.3,3092.9,0.63858746]
[1644946476414,0.00261591,3093.3,3092.9,1.44670746]
[1644946476616,0.71722713,3093.7,3093.0,0.63858746]
[1644946476820,0.00265037,3093.3,3093.0,0.63858746]
[1644946477870,1.07051106,3093.6,3093.0,1.20429156]
[1644946478071,1.07051106,3093.6,3093.0,0.5657041]
[1644946478072,0.00256211,3093.3,3093.0,0.5657041]
[1644946478371,0.00256211,3093.3,3093.1,0.3]
[1644946478571,0.00256211,3093.3,3092.8,0.00379298]
[1644946478770,0.00256211,3093.3,3092.9,0.63884338]
[1644946478970,1.07051106,3093.6,3092.9,0.63884338]
[1644946479169,0.00256207,3093.3,3092.9,0.63884338]
[1644946479374,0.00256207,3093.3,3092.9,1.20461728]
[1644946479571,0.00256207,3093.3,3093.0,0.63884338]
[1644946479771,0.00256207,3093.3,3092.8,0.00379298]
[1644946479772,1.19419442,3093.1,3092.8,0.00379298]
[1644946480173,1.19419442,3093.1,3092.6,0.00379298]
[1644946480373,1.19419442,3093.1,3092.2,0.00379298]
[1644946480572,1.19419442,3093.1,3092.3,1.20666556]
[1644946480772,1.19419442,3093.1,3092.4,0.64458034]
[1644946481019,1.19419442,3093.1,3092.5,0.64078736]
[1644946481220,1.19419442,3093.1,3092.6,0.00379298]
[1644946481421,1.19419442,3093.1,3092.7,0.64078736]
[1644946481619,3.2711,3093.4,3092.8,0.00379298]
[1644946481821,0.00239999,3093.3,3092.9,0.64078736]
[1644946482023,0.00239999,3093.3,3093.0,0.64078736]
[1644946482220,0.00239999,3093.3,3093.1,0.64078736]
[1644946482420,0.00014578,3093.3,3093.1,0.64078736]
[1644946482620,3.3605,3094.1,3093.3,0.80809]
[1644946482821,3.3605,3094.1,3093.4,0.64078736]
[1644946482822,0.00959899,3093.8,3093.4,0.64078736]
[1644946483220,0.00959899,3093.8,3093.4,0.94078736]
[1644946483621,1.05647817,3093.8,3093.5,0.64078736]
[1644946483821,1.05647817,3093.8,3093.4,0.3]
[1644946483822,1.04687918,3093.8,3093.4,0.3]
[1644946484022,1.04687918,3093.8,3092.8,0.81197298]
[1644946484023,1.04687918,3093.8,3093.5,0.64131757]
[1644946484221,1.04687918,3093.8,3093.5,0.3]
[1644946484523,1.04687918,3093.8,3093.1,0.3]
[1644946484771,1.04687918,3093.8,3093.2,1.44914696]
[1644946484974,1.04687918,3093.8,3093.3,0.64104696]
[1644946485173,1.04687918,3093.8,3093.4,0.64104696]
[1644946485374,1.04687918,3093.8,3093.5,0.64104696]
[1644946485773,3.3605,3094.1,3093.5,1.20673856]
[1644946485975,0.25,3094.2,3093.4,0.3]
[1644946485976,0.71661458,3094.0,3093.4,0.3]
[1644946486176,0.80814,3094.2,3093.5,0.64103288]
[1644946486373,0.71661953,3094.1,3093.2,1.80563305]
[1644946486575,0.71924239,3094.0,3093.3,1.94103504]
[1644946486773,0.00262286,3094.0,3093.4,0.64103504]
[1644946486973,1.14666626,3093.9,3093.5,0.5656742]
[1644946487178,1.14666626,3093.9,3093.4,0.64103504]
[1644946487179,3.75199514,3093.8,3093.4,0.64103504]
[1644946487374,1.18150104,3093.8,3092.6,2.36067894]
[1644946487574,0.85549036,3093.4,3092.9,0.6411128]
[1644946487774,1.27328,3093.8,3092.9,0.6411128]
[1644946487973,0.71636032,3093.7,3092.9,1.7726382]
[1644946488173,0.71636032,3093.7,3093.0,0.6411128]
[1644946488375,0.71636032,3093.7,3093.1,0.6411128]
[1644946488622,0.71636032,3093.7,3092.8,0.86955518]
[1644946488819,0.00261334,3093.5,3092.9,0.64151825]
[1644946489020,0.99457349,3093.5,3092.9,0.64151825]
[1644946489224,0.99457349,3093.5,3093.1,0.5657772]
[1644946489420,0.71682018,3093.4,3093.1,0.5657772]
[1644946489621,0.99457349,3093.5,3092.8,0.86955518]
[1644946489824,3.49547803,3093.7,3092.8,0.86955518]
[1644946489825,0.90837795,3093.0,3092.9,0.64153756]
[1644946490022,0.71683006,3093.4,3092.9,0.64153756]
[1644946490023,0.0026133,3093.5,3092.9,0.64153756]
[1644946490628,0.0026133,3093.5,3093.0,0.5658046]
[1644946490823,0.0026133,3093.5,3093.1,0.64153756]
[1644946491024,0.89690317,3093.8,3093.2,0.64153756]
[1644946491222,0.0026133,3093.5,3093.3,0.64153756]
[1644946491427,0.0026133,3093.5,3093.1,1.4313596]
[1644946491724,0.0026133,3093.5,3093.2,0.64128052]
[1644946491924,0.0026133,3093.5,3093.2,1.20696032]
[1644946492122,0.0026133,3093.5,3093.3,0.94130331]
[1644946492380,0.0026133,3093.5,3093.3,0.3]
[1644946492381,0.00261477,3093.5,3093.3,0.3]
[1644946493380,0.71669253,3093.7,3093.3,0.8657642]
[1644946493678,0.71669253,3093.7,3093.3,0.5657642]
[1644946493679,0.00261475,3093.6,3093.3,0.5657642]
[1644946493879,0.71930728,3093.6,3093.3,0.5657642]
[1644946494079,0.71669253,3093.5,3093.3,0.5657642]
[1644946494280,0.00261475,3093.6,3093.0,1.1315283]
[1644946494482,0.89690317,3093.8,3093.3,0.5657772]
[1644946494483,0.61908205,3093.7,3093.3,0.5657772]
[1644946494883,0.00261475,3093.5,3093.3,0.8657772]
[1644946495080,0.00261475,3093.5,3093.3,0.5657772]
[1644946495280,1.03266019,3093.3,3092.7,0.00379298]
[1644946495481,1.03266019,3093.3,3092.7,1.11206298]
[1644946495682,0.00261475,3093.5,3092.8,1.3740406]
[1644946495881,1.1455,3093.8,3092.8,0.5658206]
[1644946496122,1.1455,3093.8,3092.8,0.8658206]
[1644946496719,1.11388075,3093.4,3093.1,0.5657739]
[1644946497120,1.11388075,3093.4,3093.1,0.8657739]
[1644946498321,1.11388075,3093.4,3093.1,0.3]
[1644946498522,1.11388075,3093.4,3092.7,0.00379298]
[1644946498721,1.11388075,3093.4,3092.8,0.80827]
[1644946499322,1.11388075,3093.4,3093.1,0.5658039]
[1644946499772,1.11388075,3093.4,3093.1,0.8658039]
[1644946500176,0.01142334,3093.7,3093.1,0.8658039]
[1644946500573,8.4007,3094.0,3093.1,0.8658039]
[1644946500976,0.00285592,3093.8,3093.1,0.8658039]
[1644946501277,0.00285592,3093.8,3093.3,0.5656914]
[1644946501482,0.00285592,3093.8,3093.3,0.75493382]
[1644946501675,0.00285592,3093.8,3093.3,1.75493382]
[1644946501875,1.1901,3094.2,3093.3,2.05493382]
[1644946502278,0.00285599,3093.8,3093.3,2.05493382]
[1644946502473,0.0001663,3093.8,3093.4,6.75]
[1644946502678,0.0001663,3093.8,3093.4,0.5656506]
[1644946502875,0.0001663,3093.8,3093.4,0.8656506]
[1644946503078,2.12810186,3094.2,3093.4,0.8656506]
[1644946504622,1.1901,3094.2,3093.4,1.6737206]
[1644946504822,1.1901,3094.2,3093.5,0.80807]
[1644946505121,1.1901,3094.2,3093.6,0.3]
[1644946505524,0.13819996,3094.4,3093.6,0.3]
[1644946505722,0.13819996,3094.4,3093.7,0.96906386]
[1644946506122,0.13819996,3094.4,3093.5,1.14750155]
[1644946506422,0.13819996,3094.4,3093.5,0.3]
[1644946506622,0.13819996,3094.4,3093.6,0.3]
[1644946506824,0.13819996,3094.4,3093.9,0.5656341]
[1644946507025,0.00285926,3094.1,3093.9,0.5656341]
[1644946507301,13.76592983,3097.6,3094.0,5.0]
[1644946507487,4.2388,3097.5,3096.6,5.0]
[1644946507680,4.2388,3097.5,3097.2,5.0]
[1644946507681,0.30992046,3097.4,3097.2,5.0]
[1644946507885,1.62450958,3098.5,3097.5,0.21799164]
[1644946508084,0.25,3098.8,3097.5,6.18597]
[1644946508085,0.30030269,3098.3,3097.5,6.18597]
[1644946508279,0.30030269,3098.3,3098.2,0.01225448]
[1644946508280,0.27051585,3098.3,3098.2,0.01225448]
[1644946508483,0.25,3098.8,3098.3,0.20675672]
[1644946508484,0.60992846,3098.8,3098.3,0.20675672]
[1644946508678,13.51387099,3098.9,3098.3,0.20675672]
[1644946508679,14.12379945,3098.9,3098.4,0.465]
[1644946508879,13.51387099,3098.9,3098.4,1.13429278]
[1644946509280,13.51387099,3098.9,3098.6,3.5]
[1644946511249,13.51387099,3098.9,3098.7,0.3]
[1644946511448,13.51387099,3098.9,3098.7,0.48089378]
[1644946511649,13.51387099,3098.9,3098.8,3.5]
[1644946512048,8.67425509,3098.9,3098.8,4.8]
[1644946512249,0.80994451,3099.0,3098.9,3.95]
[1644946512250,0.5600437,3099.0,3098.9,3.95]
[1644946512447,0.001,3100.0,3098.9,3.95]
[1644946512448,0.01293063,3099.9,3099.1,0.18844407]
[1644946512647,0.01293063,3099.9,3099.0,6.75]
[1644946512648,0.01193063,3099.9,3099.0,0.3]
[1644946512847,0.01193063,3099.9,3099.2,4.5]
[1644946513047,0.01193063,3099.9,3099.2,4.8]
[1644946513250,0.01193063,3099.9,3099.4,0.5646766]
[1644946513449,0.01293063,3099.9,3099.4,0.5646766]
[1644946513647,0.01293063,3099.9,3099.5,1.3]
[1644946514047,0.01293063,3099.9,3099.5,4.8]
[1644946514247,0.01293063,3099.9,3099.6,2.6933757]
[1644946514448,0.01293063,3099.9,3099.8,1.21950743]
[1644946514647,0.01293063,3099.9,3099.8,1.0]
[1644946514874,0.01293063,3099.9,3099.8,1.3]
[1644946515074,0.01293063,3099.9,3099.8,4.8]
[1644946515375,0.01293063,3099.9,3099.8,6.28230956]
[1644946515779,0.01293063,3099.9,3099.8,5.98230956]
[1644946515973,10.6203,3100.0,3099.8,5.5257069]
[1644946515974,5.79536413,3100.0,3099.8,5.5257069]
[1644946516174,5.79536413,3100.0,3099.8,4.5257069]
[1644946516974,5.79536413,3100.0,3099.9,1.0]
[1644946517176,0.00284082,3100.1,3100.0,6.75]
[1644946517375,0.00284082,3100.1,3100.0,7.28621495]
[1644946517575,2.2747,3100.3,3100.0,8.58621495]
[1644946517776,2.2747,3100.3,3100.1,1.01528224]
[1644946517976,2.2747,3100.3,3100.2,1.0]
[1644946518176,2.2747,3100.3,3100.2,1.3]
[1644946518379,2.2747,3100.3,3100.2,8.33809328]
[1644946518623,2.2747,3100.3,3100.2,8.5732936]
[1644946518822,2.2747,3100.3,3100.2,4.8]
[1644946519226,2.2747,3100.3,3100.2,1.0]
[1644946519430,2.2747,3100.3,3099.7,1.0]
[1644946519431,1.08692933,3100.2,3099.7,1.0]
[1644946519823,2.2747,3100.3,3099.7,1.0]
[1644946520425,2.2747,3100.3,3099.2,0.80657]
[1644946520426,7.2747,3100.3,3099.6,1.0]
[1644946520627,7.2747,3100.3,3099.3,0.0001]
[1644946520628,0.465,3100.2,3099.3,0.0001]
[1644946520825,1.465,3100.2,3099.3,0.0001]
[1644946521031,0.001,3100.1,3099.0,0.0001]
[1644946521224,0.001,3100.1,3098.8,0.00161065]
[1644946521225,0.465,3100.0,3098.8,0.00161065]
[1644946521424,0.465,3100.0,3098.6,0.0001]
[1644946521425,0.465,3100.0,3098.6,0.80685]
[1644946521630,0.465,3100.0,3098.9,0.0001]
[1644946521829,2.2747,3100.3,3099.0,0.0001]
[1644946521830,0.001,3100.2,3099.0,0.0001]
[1644946522295,0.001,3100.2,3099.3,0.0001]
[1644946522493,0.001,3100.2,3098.8,0.23436988]
[1644946522494,0.001,3100.2,3099.2,0.0001]
[1644946522894,0.00521064,3100.2,3099.2,0.16471285]
[1644946523697,0.00521064,3100.2,3099.3,0.0001]
[1644946523892,0.00521064,3100.2,3099.6,0.0001]
[1644946524092,2.7397,3100.3,3100.2,0.01042128]
[1644946524293,2.27754056,3100.3,3100.2,0.01042128]
[1644946525093,2.2747,3100.3,3100.2,0.01042128]
[1644946527525,2.2747,3100.3,3100.2,2.128e-05]
[1644946527723,26.9497,3100.3,3100.2,2.128e-05]
[1644946527924,3.7397,3100.3,3100.2,2.128e-05]
[1644946528321,2.7397,3100.3,3100.2,2.128e-05]
[1644946528722,3.7397,3100.3,3100.2,2.128e-05]
[1644946529222,3.7407,3100.3,3100.2,2.128e-05]
[1644946529422,3.0407,3100.3,3100.2,2.128e-05]
[1644946529630,6.75,3100.2,3098.8,0.00284622]
[1644946529876,5.0,3099.8,3098.4,3.5]
[1644946530075,1.57194,3099.7,3098.3,1.6137]
[1644946530275,18.91,3099.6,3098.8,0.00274622]
[1644946530475,0.8954635,3099.2,3098.8,0.00274622]
[1644946530675,1.5935,3099.1,3098.8,0.00274622]
[1644946530876,0.465,3099.0,3098.8,0.00274622]
[1644946531078,1.1481,3098.9,3098.3,1.6137]
[1644946531276,1.6131,3098.9,3098.8,0.0027457]
[1644946532276,1.6131,3098.9,3098.4,0.3]
[1644946532277,2.68596166,3098.9,3098.4,0.3]
[1644946532476,1.6131,3098.9,3098.4,0.3]
[1644946532676,1.6131,3098.9,3098.7,0.00258614]
[1644946533525,1.6131,3098.9,3098.3,0.80692]
[1644946533929,1.6131,3098.9,3098.6,0.00258617]
[1644946534628,1.6131,3098.9,3098.5,0.80685]
[1644946534827,1.6131,3098.9,3098.5,1.10685]
[1644946535027,1.6131,3098.9,3098.6,0.00258619]
[1644946535827,1.6131,3098.9,3098.5,1.10685]
[1644946536228,1.6131,3098.9,3098.6,0.00260196]
[1644946537129,1.6131,3098.9,3098.5,1.10685]
[1644946537372,1.6131,3098.9,3098.6,0.00251516]
[1644946537572,1.6131,3098.9,3098.6,0.80929516]
[1644946538375,1.6131,3098.9,3098.6,0.80678]
[1644946538577,1.6131,3098.9,3098.5,1.10685]
[1644946539775,1.6131,3098.9,3098.6,0.80679]
[1644946539975,1.61728958,3098.9,3098.6,0.80679]
[1644946540177,1.61728958,3098.9,3098.5,1.10822164]
[1644946540776,1.61728958,3098.9,3098.5,1.10685]
[1644946541020,1.61728958,3098.9,3098.5,1.10944974]
[1644946541220,1.61728958,3098.9,3098.6,0.4840481]
[1644946541618,1.61728958,3098.9,3098.7,0.3]
[1644946542020,1.15228958,3098.9,3098.7,1.91356]
[1644946542720,1.15228958,3098.9,3098.8,0.18603397]
[1644946543323,1.15228958,3098.9,3098.8,0.567667]
[1644946543521,1.15228958,3098.9,3098.8,0.38065064]
[1644946543720,1.15228958,3098.9,3098.8,0.33570662]
[1644946543921,1.15228958,3098.9,3098.8,0.55661809]
[1644946544122,6.1041,3099.0,3098.8,0.18613397]
[1644946544123,5.79114366,3099.0,3098.8,0.18613397]
[1644946544523,5.79114366,3099.0,3098.9,0.18613397]
[1644946544787,5.79114366,3099.0,3098.9,0.48613397]
[1644946545086,5.79114366,3099.0,3098.9,0.63936583]
[1644946545286,5.79114366,3099.0,3098.9,0.48613397]
[1644946545888,5.79114366,3099.0,3098.9,0.48603397]
[1644946546088,5.79114366,3099.0,3098.9,0.18603397]
[1644946547889,6.25614366,3099.0,3098.9,0.18603397]
[1644946551720,6.25614366,3099.0,3098.9,1.55988789]
[1644946551922,6.25614366,3099.0,3098.9,0.75298809]
[1644946552122,6.25614366,3099.0,3097.7,0.92216231]
[1644946552123,7.0598,3098.9,3097.7,0.92216231]
[1644946552407,7.0598,3098.9,3097.2,1.23149162]
[1644946552408,0.99638986,3097.7,3097.1,0.61370925]
[1644946552601,7.5939,3097.6,3096.9,0.61370925]
[1644946552807,7.5939,3097.6,3097.0,0.61370925]
[1644946552808,7.1289,3097.6,3097.0,0.61370925]
[1644946553020,5.812,3098.3,3097.2,7.36370925]
[1644946553021,5.562,3098.3,3097.2,7.36370925]
[1644946553205,0.29939252,3099.3,3097.5,0.61370925]
[1644946553406,1.6137,3099.9,3099.8,4.33701231]
[1644946553601,8.06912,3101.5,3099.8,4.33701231]
[1644946553602,7.1921,3101.3,3099.8,4.84701231]
[1644946553802,7.1921,3101.3,3100.0,5.08289677]
[1644946554003,8.5797,3101.6,3100.1,3.67376859]
[1644946554201,0.27541947,3102.3,3100.5,5.812]
[1644946554403,0.25,3102.2,3100.9,5.812]
[1644946554601,0.25,3102.2,3101.0,4.1396209]
[1644946554805,0.25,3102.2,3101.7,5.812]
[1644946555001,7.06050248,3102.6,3101.7,5.812]
[1644946555002,7.06050248,3102.6,3101.8,2.88171]
[1644946555201,7.06050248,3102.6,3101.9,5.812]
[1644946555202,0.00850248,3102.6,3101.9,5.812]
[1644946555405,0.00850248,3102.6,3102.1,5.812]
[1644946555602,0.00850248,3102.6,3102.2,0.465]
[1644946555803,0.09591547,3103.1,3102.4,5.812]
[1644946556040,0.09591547,3103.1,3102.6,2.41636]
[1644946556235,0.09591547,3103.1,3102.7,0.2303332]
[1644946556437,0.09591547,3103.1,3102.6,4.84701231]
[1644946556636,0.09591547,3103.1,3102.8,4.84701231]
[1644946556839,0.09591547,3103.1,3102.7,4.84701231]
[1644946557137,0.09591547,3103.1,3102.8,4.84701231]
[1644946557539,0.09591547,3103.1,3102.9,4.84701231]
[1644946557940,0.91081203,3102.7,3102.0,1.0]
[1644946558137,0.91081203,3102.7,3101.4,4.5]
[1644946558343,0.91081203,3102.7,3102.1,4.849499]
[1644946558636,0.91081203,3102.7,3102.2,4.849499]
[1644946558839,0.91081203,3102.7,3100.8,3.67018873]
[1644946558840,18.91,3102.5,3100.8,3.67018873]
[1644946559038,6.75,3102.6,3100.4,0.19297673]
[1644946559039,19.3884053,3102.4,3100.4,0.19297673]
[1644946559238,18.91,3102.2,3100.4,3.5]
[1644946559441,0.001,3102.1,3100.0,0.22466306]
[1644946559637,0.001,3102.1,3099.8,3.5]
[1644946559638,0.465,3102.0,3101.0,0.00138037]
[1644946559878,2.72246654,3101.9,3101.0,0.00138037]
[1644946560084,0.466,3101.8,3101.0,0.00138037]
[1644946560277,0.00416864,3101.7,3101.0,0.00138037]
[1644946560482,0.387,3101.6,3101.1,1.0]
[1644946560679,0.39116864,3101.5,3101.1,1.0]
[1644946560878,0.387,3101.5,3101.1,1.0]
[1644946561077,0.00416864,3101.4,3101.1,1.0]
[1644946561277,0.00416864,3101.4,3101.2,0.80601]
[1644946561484,0.00416864,3101.4,3101.3,0.22210318]
[1644946561678,0.388,3101.8,3101.3,0.22210318]
[1644946561679,0.00516864,3101.8,3101.3,1.32791318]
[1644946562477,0.00516864,3101.8,3101.3,2.93960318]
[1644946562677,0.00516864,3101.8,3101.4,0.80585]
[1644946562877,0.00516864,3101.8,3101.3,2.93960318]
[1644946562878,0.00516864,3101.8,3101.7,1.0]
[1644946564826,1.136,3101.9,3101.8,0.01033728]
[1644946566330,1.1381,3102.1,3101.9,3.39709405]
[1644946566529,1.1381,3102.1,3101.9,3.22255]
[1644946566728,1.1381,3102.1,3101.9,3.52255]
[1644946566929,1.1381,3102.1,3101.8,0.01033728]
[1644946567778,1.1381,3102.1,3101.8,0.31033728]
[1644946567975,1.2251,3102.9,3101.8,0.31033728]
[1644946568182,1.2251,3102.9,3101.8,0.01033728]
[1644946568374,1.2251,3102.9,3102.3,1.0]
[1644946569177,0.00284616,3102.8,3102.3,1.0]
[1644946569676,0.00284616,3102.8,3102.3,0.97422431]
[1644946569875,0.00384616,3102.8,3102.3,0.97422431]
[1644946570076,0.001,3102.8,3102.3,0.97422431]
[1644946570275,0.00284618,3102.7,3102.3,0.97422431]
[1644946570877,0.38984618,3102.7,3102.3,0.97422431]
[1644946571332,0.387,3102.7,3102.3,0.97422431]
[1644946571524,0.38823414,3102.7,3102.3,0.97422431]
[1644946572523,0.387,3102.7,3102.3,0.97422431]
[1644946573924,0.3898533,3102.7,3102.3,0.97422431]
[1644946574125,0.3898533,3102.7,3102.3,33.97422431]
[1644946574872,0.387,3102.7,3102.3,33.97422431]
[1644946575279,0.3898533,3102.7,3102.3,33.97422431]
[1644946575877,0.3898533,3102.7,3102.3,33.0]
[1644946576273,0.387,3102.7,3102.3,33.0]
[1644946576475,0.3898533,3102.7,3102.5,1.0]
[1644946577281,0.387,3102.7,3102.5,1.0]
[1644946577878,0.00385325,3102.8,3102.5,1.0]
[1644946578077,0.00385325,3102.8,3102.5,1.3]
[1644946578078,0.00285325,3102.8,3102.5,1.3]
[1644946578528,0.001,3103.2,3102.5,1.3]
[1644946578529,0.001,3103.2,3102.5,0.3]
[1644946578726,0.0012357,3102.8,3102.4,0.18186832]
[1644946578928,0.0012357,3102.8,3102.4,0.80556]
[1644946579131,0.0012357,3102.8,3102.3,33.0]
[1644946579327,0.0012357,3102.8,3102.7,1.0]
[1644946579828,0.001,3103.2,3102.7,0.97422067]
[1644946580027,0.0012357,3102.9,3102.7,0.97422067]